fUST/lending_fUST_20250513
["ID","MTS","AMOUNT","RATE_DAILY","PERIOD"]
[360891984,1747119045550,-151.0,0.000191,2]
[360891985,1747119045560,-151.0,0.000191,2]
[360891986,1747119045570,-151.0,0.000191,2]
[360891987,1747119045580,-151.0,0.000191,2]
[360891989,1747119045591,-151.0,0.000191,2]
[360891991,1747119045601,-151.0,0.000191,2]
[360891992,1747119045611,-151.0,0.000191,2]
[360891993,1747119045622,-151.0,0.000191,2]
[360891994,1747119045632,-151.0,0.000191,2]
[360891995,1747119045642,-151.0,0.000191,2]
[360891996,1747119045653,-788.67241,0.000191,2]
[360891997,1747119045663,-788.67241,0.000191,2]
[360891998,1747119045673,-151.0,0.000191,2]
[360891999,1747119045683,-151.0,0.000191,2]
[360892000,1747119045694,-151.0,0.000191,2]
[360892001,1747119045705,-151.0,0.000191,2]
[360892002,1747119045715,-935.357766,0.000191,2]
[360892003,1747119045725,-935.357766,0.000191,2]
[360892004,1747119045736,-420.561592,0.000191,2]
[360892005,1747119045749,-420.561592,0.000191,2]
[360892006,1747119045760,-151.0,0.000191,2]
[360892007,1747119045772,-151.0,0.000191,2]
[360892009,1747119045783,-151.0,0.000191,2]
[360892010,1747119045793,-151.0,0.000191,2]
[360892011,1747119045804,-218.71077,0.000191,2]
[360892012,1747119045814,-218.71077,0.000191,2]
[360892013,1747119045825,-758.200933,0.000191,2]
[360892014,1747119045835,-758.200933,0.000191,2]
[360892015,1747119045845,-151.0,0.000191,2]
[360892016,1747119045855,-212.19047112,0.000191,7]
[360892017,1747119045865,-12625.42653527,0.000191,7]
[360892018,1747119045875,-997.88380159,0.000191,7]
[360892019,1747119045887,-151.0,0.000191,2]
[360892020,1747119045898,-151.0,0.000191,2]
[360892021,1747119045910,-596.32485293,0.00019173,2]
[360892022,1747119045920,-500.0,0.00019173,2]
[360892023,1747119045931,-500.0,0.00019173,2]
[360892024,1747119045942,-500.0,0.00019173,2]
[360892025,1747119045952,-500.0,0.00019173,2]
[360892026,1747119045962,-171.906886,0.00019173,2]
[360892027,1747119045972,-500.0,0.00019173,2]
[360892028,1747119045985,-500.0,0.00019173,2]
[360892029,1747119046205,-500.0,0.00019173,2]
[360892030,1747119046216,-500.0,0.00019173,2]
[360892031,1747119046227,-503.16904546,0.00019173,2]
[360892032,1747119046238,-500.0,0.00019173,2]
[360892033,1747119046249,-500.0,0.00019173,2]
[360892034,1747119046259,-500.0,0.00019173,2]
[360892035,1747119046270,-500.0,0.00019173,2]
[360892036,1747119046280,-151.0,0.00019173,2]
[360892037,1747119046291,-218.71077,0.00019176,2]
[360892038,1747119046301,-218.71077,0.00019176,2]
[360892039,1747119046313,-758.200933,0.00019176,2]
[360892040,1747119046324,-758.200933,0.00019176,2]
[360892041,1747119046334,-151.0,0.00019176,2]
[360892042,1747119046344,-729764.4908328,0.00019177,5]
[360892043,1747119046355,-41824.64117217,0.00019177,2]
[360892044,1747119047022,-513.6276552,0.00019177,2]
[360892045,1747119047642,-1060.28,0.000186,7]
[360892046,1747119047654,-13554.47596783,0.00019177,2]
[360892047,1747119047685,-12914.69680339,0.00019177,2]
[360892051,1747119158758,-288.16200006,0.00015672,2]
[360892054,1747119173810,-193.36269615,0.00015672,2]
[360892055,1747119188730,-393.80398597,0.00015672,2]
[360892057,1747119203288,-196.47763723,0.00015672,2]
[360892072,1747119405676,1998.37,0.00012,10]
[360892082,1747120029112,-3164.64678285,0.00013426,2]
[360892083,1747120031090,-489.0144722,0.00013426,2]
[360892084,1747120041078,-402.43021619,0.00013426,2]
[360892085,1747120045121,-943.90852876,0.00013426,2]
[360892086,1747120045147,-500.0,0.00013562,2]
[360892087,1747120045180,-500.0,0.00013562,2]
[360892088,1747120045208,-346.843125,0.00013699,2]
[360892089,1747120045243,-2000.0,0.000158,2]
[360892090,1747120045269,-300.0,0.00015899,2]
[360892091,1747120045293,-775.88546213,0.000159,2]
[360892116,1747120232140,-5000.0,0.00015741,2]
[360892117,1747120232150,-215.772638,0.00016353,2]
[360892118,1747120232159,-292.34,0.000164,2]
[360892119,1747120232169,-404.0,0.00016458,2]
[360892120,1747120232178,-1839.37601185,0.000169,2]
[360892121,1747120232188,-300.0,0.00016999,2]
[360892122,1747120232198,-4376.60764561,0.00017,2]
[360892123,1747120232207,-511.59821243,0.00017139,2]
[360892124,1747120232217,-500.0,0.00017139,2]
[360892126,1747120232228,-340.13293101,0.00017139,2]
[360892128,1747120232237,-1839.3760116,0.00017176,2]
[360892130,1747120232247,-250.0,0.00017276,2]
[360892132,1747120232257,-1839.3760116,0.00017452,2]
[360892134,1747120232268,-1000.0,0.00017619,5]
[360892136,1747120232278,-1839.3760116,0.00017728,2]
[360892139,1747120232294,-1839.3760116,0.00018003,2]
[360892141,1747120232309,-255.542,0.00018279,2]
[360892142,1747120232319,-1839.3760116,0.00018279,2]
[360892143,1747120232329,-262.91629188,0.00018293,2]
[360892144,1747120232338,-1072.55794,0.00018322,7]
[360892145,1747120232348,-160.0,0.00018372,2]
[360892147,1747120232358,-160.0,0.00018372,2]
[360892149,1747120232368,-160.0,0.00018377,2]
[360892151,1747120232377,-160.0,0.00018377,2]
[360892153,1747120232387,-212.19047112,0.00018377,2]
[360892155,1747120232397,-160.0,0.00018377,2]
[360892157,1747120232406,-997.88380159,0.00018377,2]
[360892159,1747120232416,-160.0,0.00018377,2]
[360892161,1747120232426,-160.0,0.00018377,2]
[360892163,1747120232435,-422.24190663,0.00018377,2]
[360892165,1747120232445,-12625.42653527,0.00018377,2]
[360892167,1747120232454,-160.0,0.00018377,2]
[360892169,1747120232464,-160.0,0.00018377,2]
[360892171,1747120232473,-160.0,0.00018377,2]
[360892173,1747120232486,-1839.3760116,0.00018555,2]
[360892175,1747120232496,-420.0,0.00018567,2]
[360892177,1747120232506,-151.0,0.000188,2]
[360892180,1747120232516,-151.0,0.000188,2]
[360892182,1747120232526,-1839.3760116,0.00018831,2]
[360892184,1747120232536,-500.0,0.00018899,2]
[360892186,1747120232546,-500.0,0.00018899,2]
[360892188,1747120232556,-500.0,0.00018899,2]
[360892190,1747120232567,-500.0,0.00018899,2]
[360892192,1747120232577,-186.03062598,0.00018899,2]
[360892194,1747120232587,-500.0,0.00018899,2]
[360892196,1747120232598,-500.0,0.00018899,2]
[360892198,1747120232608,-500.0,0.00018899,2]
[360892200,1747120232617,-201.58857475,0.00018899,2]
[360892240,1747120237994,-535.037,0.00018322,7]
[360892241,1747120238004,-298.41142525,0.00018899,2]
[360892242,1747120238015,-500.0,0.00018899,2]
[360892243,1747120238024,-500.0,0.00018899,2]
[360892244,1747120238034,-500.0,0.00018899,2]
[360892246,1747120238043,-500.0,0.00018899,2]
[360892248,1747120238052,-500.0,0.00018899,2]
[360892250,1747120238061,-293.69228475,0.00018899,2]
[360892258,1747120238133,-206.30771525,0.00018899,2]
[360892260,1747120238142,-500.0,0.00018899,2]
[360892263,1747120238153,-299.59411779,0.00018899,2]
[360892266,1747120238162,-500.0,0.00018899,2]
[360892270,1747120238172,-500.0,0.00018899,2]
[360892271,1747120238182,-500.0,0.00018899,2]
[360892273,1747120238192,-500.0,0.00018899,2]
[360892275,1747120238202,-500.0,0.00018899,2]
[360892277,1747120238211,-500.0,0.00018899,2]
[360892280,1747120238221,-500.0,0.00018899,2]
[360892281,1747120238230,-725.92363269,0.000189,2]
[360892284,1747120238240,-262.91629182,0.00018914,2]
[360892285,1747120238249,-151.0,0.00018935,2]
[360892287,1747120238258,-61.2154041,0.00018935,2]
[360892290,1747120238270,-89.7845959,0.00018935,2]
[360892292,1747120238279,-751.4394041,0.00018985,2]
[360892294,1747120238291,-2722.98019716,0.00018985,2]
[360892368,1747120240409,-0.01103157,0.00016,2]
[360892369,1747120240422,-461.38976797,0.00016,2]
[360892370,1747120240433,-701.46346679,0.00016,2]
[360892371,1747120240444,-603.519,0.00016,2]
[360892372,1747120240457,-2073.16201026,0.00016,2]
[360892376,1747120243566,-773.83,0.00016,2]
[360892380,1747120246318,-386.62472341,0.00016,2]
[360892381,1747120246328,-5000.0,0.00016591,2]
[360892382,1747120246339,-5000.0,0.00017425,2]
[360892383,1747120246348,-5000.0,0.00018258,2]
[360892384,1747120246357,-669.63967,0.00018322,7]
[360892385,1747120246366,-5000.0,0.0001871,2]
[360892386,1747120246375,-2996.82785654,0.00018985,2]
[360892387,1747120246384,-20627.256421,0.00018985,2]
[360892388,1747120246394,-151.0,0.00019,2]
[360892389,1747120246403,-151.0,0.00019,2]
[360892390,1747120246412,-344.05178568,0.00019077,2]
[360892391,1747120246421,-214.110636,0.00019077,2]
[360892392,1747120246431,-165.34969197,0.00019078,2]
[360892393,1747120246440,-360.6476089,0.00019081,2]
[360892394,1747120246449,-5000.0,0.00019092,2]
[360892395,1747120246458,-198.15,0.000191,4]
[360892396,1747120246468,-1839.3760116,0.00019107,2]
[360892397,1747120246478,-449.76,0.00019167,3]
[360892398,1747120246491,-500.0,0.00019173,2]
[360892399,1747120246501,-500.0,0.00019173,2]
[360892400,1747120246509,-502.45172187,0.00019173,2]
[360892401,1747120246519,-503.28766465,0.00019173,2]
[360892402,1747120246529,-500.0,0.00019173,2]
[360892403,1747120246538,-500.0,0.00019173,2]
[360892404,1747120246547,-503.86990336,0.00019173,2]
[360892405,1747120246557,-500.0,0.00019173,2]
[360892406,1747120246566,-500.0,0.00019173,2]
[360892407,1747120246576,-500.0,0.00019173,2]
[360892408,1747120246585,-500.0,0.00019173,2]
[360892409,1747120246596,-500.0,0.00019173,2]
[360892410,1747120246605,-500.0,0.00019173,2]
[360892411,1747120246615,-166111.23930166,0.00019177,2]
[360892419,1747120419601,-152.459,0.00013699,2]
[360892421,1747120433890,-194.256175,0.00013699,2]
[360892447,1747121228104,-2943.96053873,0.00014355,2]
[360892448,1747121232128,-1254.2782373,0.00014355,2]
[360892452,1747121241095,-254.36804391,0.00014355,2]
[360892453,1747121249135,-547.39318006,0.00014355,2]
[360892454,1747121249157,-1000.0,0.000145,2]
[360892455,1747121249179,-215.772639,0.0001457,2]
[360892456,1747121249201,-197.1872189,0.000149,2]
[360892457,1747121249224,-300.0,0.00014993,2]
[360892458,1747121249246,-189.0,0.00014993,2]
[360892459,1747121249271,-300.0,0.00014995,2]
[360892460,1747121249295,-1200.0,0.00014996,2]
[360892461,1747121249316,-300.0,0.00014997,2]
[360892462,1747121249338,-300.0,0.00014997,2]
[360892463,1747121249360,-300.0,0.00014997,2]
[360892464,1747121249383,-500.0,0.00014999,2]
[360892465,1747121249405,-273.33445542,0.00014999,2]
[360892466,1747121249429,-500.0,0.00014999,2]
[360892467,1747121249452,-500.0,0.00014999,2]
[360892468,1747121249476,-500.0,0.00014999,2]
[360892469,1747121249499,-500.0,0.00014999,2]
[360892470,1747121249524,-500.0,0.00014999,2]
[360892471,1747121249548,-500.0,0.00014999,2]
[360892472,1747121249571,-500.0,0.00014999,2]
[360892473,1747121249593,-500.0,0.00014999,2]
[360892474,1747121249615,-548.87568744,0.00014999,2]
[360892475,1747121249639,-500.0,0.00014999,2]
[360892476,1747121249663,-329.10553135,0.00014999,2]
[360892477,1747121250125,-170.89446865,0.00014999,2]
[360892478,1747121250149,-500.0,0.00014999,2]
[360892479,1747121250172,-500.0,0.00014999,2]
[360892480,1747121250198,-500.0,0.00014999,2]
[360892481,1747121250221,-563.40338011,0.00014999,2]
[360892482,1747121250244,-500.0,0.00014999,2]
[360892483,1747121250272,-500.0,0.00014999,2]
[360892484,1747121250295,-500.0,0.00014999,2]
[360892485,1747121250320,-500.0,0.00014999,2]
[360892486,1747121250344,-32.88218904,0.00014999,2]
[360892559,1747121432347,-5000.0,0.00014849,2]
[360892560,1747121432357,-1894.37609846,0.000149,2]
[360892561,1747121432367,-500.0,0.00014997,2]
[360892562,1747121432377,-377.01584864,0.00014997,2]
[360892563,1747121432387,-500.0,0.00014997,2]
[360892564,1747121432396,-439.21328985,0.00014997,2]
[360892565,1747121432406,-500.0,0.00014997,2]
[360892566,1747121432415,-500.0,0.00014997,2]
[360892567,1747121432424,-500.0,0.00014997,2]
[360892568,1747121432434,-1200.0,0.00014997,2]
[360892569,1747121432443,-5189.39476305,0.00014999,2]
[360892570,1747121432455,-13603.12490519,0.00014999,2]
[360892571,1747121432465,-300.0,0.00014999,2]
[360892572,1747121432474,-16555.07169481,0.00015,5]
[360892577,1747121432738,-500.0,0.00014997,2]
[360892578,1747121432748,-23546.49581041,0.00015,5]
[360892579,1747121432777,-500.0,0.00014997,2]
[360892580,1747121432787,-500.0,0.00014997,2]
[360892581,1747121432796,-96840.53280099,0.00015,5]
[360892582,1747121432805,-500.0,0.00015,2]
[360892583,1747121432814,-1894.37609833,0.00015245,2]
[360892584,1747121432824,-1894.37609833,0.0001559,2]
[360892585,1747121432834,-1894.37609833,0.00015934,2]
[360892586,1747121432843,-5000.0,0.00016,2]
[360892587,1747121432852,-1894.37609833,0.00016279,2]
[360892588,1747121432862,-263.11,0.000164,2]
[360892589,1747121432871,-1894.37609833,0.00016624,2]
[360892590,1747121432880,-404.0,0.00016936,2]
[360892591,1747121432889,-1894.37609833,0.00016969,2]
[360892592,1747121432899,-5000.0,0.00017008,2]
[360892593,1747121432908,-1894.37609833,0.00017314,2]
[360892594,1747121432918,-581.3234286,0.00017356,2]
[360892595,1747121432927,-1949.1358185,0.00017373,2]
[360892596,1747121432936,-263.2204713,0.00017528,2]
[360892597,1747121432946,-1894.37609833,0.00017659,2]
[360892598,1747121432955,-252.077,0.00017693,2]
[360892599,1747121432964,-5000.0,0.00017797,2]
[360892600,1747121432973,-5000.0,0.00017797,2]
[360892601,1747121432983,-5000.0,0.00017797,2]
[360892602,1747121432992,-151.2139402,0.00017797,2]
[360892603,1747121433001,-5000.0,0.00017797,2]
[360892604,1747121433010,-5000.0,0.00017797,2]
[360892605,1747121433020,-5000.0,0.00017797,2]
[360892606,1747121433029,-207.4,0.00017797,2]
[360892607,1747121433039,-155.44004184,0.00017797,2]
[360892608,1747121433048,-1894.37609833,0.00018003,2]
[360892609,1747121433057,-5000.0,0.00018258,2]
[360892610,1747121433066,-160.0,0.00018345,2]
[360892611,1747121433076,-5000.0,0.00018345,2]
[360892612,1747121433085,-1894.37609833,0.00018348,2]
[360892613,1747121433094,-625.3188,0.00018471,7]
[360892614,1747121433104,-5121.0,0.00018682,6]
[360892615,1747121433113,-1894.37609833,0.00018693,2]
[360892616,1747121433122,-151.0,0.000188,2]
[360892617,1747121433131,-5000.0,0.00018893,2]
[360892618,1747121433141,-483.94908846,0.000189,2]
[360892619,1747121433150,-160.0,0.00018977,2]
[360892620,1747121433159,-160.0,0.00018978,2]
[360892621,1747121433168,-212.19047112,0.00018978,2]
[360892622,1747121433177,-160.0,0.00018978,2]
[360892623,1747121433186,-997.88380159,0.00018978,2]
[360892624,1747121433199,-422.24190663,0.00018978,2]
[360892625,1747121433208,-12625.42653527,0.00018978,2]
[360892626,1747121433218,-160.0,0.00018978,2]
[360892627,1747121433226,-160.0,0.00018978,2]
[360892628,1747121433236,-160.0,0.00018978,2]
[360892629,1747121433245,-6155.40268235,0.0001898,2]
[360892630,1747121433254,-324.582848,0.00019081,2]
[360892631,1747121433264,-502.25076551,0.00019173,2]
[360892632,1747121433273,-500.0,0.00019173,2]
[360892633,1747121433283,-502.51431286,0.00019173,2]
[360892634,1747121433292,-502.21717576,0.00019173,2]
[360892635,1747121433301,-500.0,0.00019173,2]
[360892636,1747121433311,-500.0,0.00019173,2]
[360892637,1747121433319,-500.0,0.00019173,2]
[360892638,1747121433329,-500.0,0.00019173,2]
[360892639,1747121433342,-500.0,0.00019173,2]
[360892640,1747121433353,-500.0,0.00019176,2]
[360892641,1747121433363,-500.0,0.00019176,2]
[360892642,1747121433372,-500.0,0.00019176,2]
[360892643,1747121433381,-503.4978294,0.00019176,2]
[360892644,1747121433390,-265092.3501161,0.00019177,2]
[360892649,1747121438477,-172.53881652,0.00014899,2]
[360892650,1747121438487,-500.0,0.00014997,2]
[360892651,1747121438496,-258.94436518,0.00014997,2]
[360892652,1747121438505,-500.0,0.00014997,2]
[360892653,1747121438515,-500.0,0.00014997,2]
[360892654,1747121438524,-388.94826894,0.00014997,2]
[360892655,1747121438536,-111.05173106,0.00014997,2]
[360892656,1747121438545,-500.0,0.00014997,2]
[360892657,1747121438554,-500.0,0.00014997,2]
[360892658,1747121438564,-500.0,0.00014997,2]
[360892659,1747121438573,-500.0,0.00014997,2]
[360892660,1747121438585,-390.0,0.00018471,7]
[360892661,1747121438594,-160.0,0.00018977,2]
[360892662,1747121438603,-160.0,0.00018977,2]
[360892663,1747121438613,-716.17229144,0.00019038,2]
[360892667,1747121440682,-346.637148,0.00013699,2]
[360892668,1747121440691,-1178.20380689,0.00019038,2]
[360892669,1747121440701,-13890.56106943,0.00019177,2]
[360892670,1747121440712,-1856.84192456,0.00019177,2]
[360892685,1747121443487,-514.77986004,0.00015845,2]
[360892686,1747121443498,-2063.9,0.00015845,2]
[360892687,1747121443622,-2421.32013996,0.00015845,2]
[360892688,1747121443632,-172.5388165,0.00016005,2]
[360892689,1747121443641,-371.41,0.00018471,7]
[360892690,1747121443650,-39524.85723891,0.00019177,2]
[360892714,1747121446552,-172.5388165,0.0001711,2]
[360892715,1747121446562,-278.19,0.00018471,7]
[360892716,1747121446572,-44716.70189685,0.00019177,2]
[360892717,1747121446581,-1100.49,0.00019178,2]
[360892718,1747121446593,-400.0,0.00019178,2]
[360892719,1747121446603,-261.841817,0.00019178,2]
[360892720,1747121446612,-400.0,0.00019178,2]
[360892721,1747121446622,-400.0,0.00019178,2]
[360892722,1747121446631,-400.0,0.00019178,2]
[360892723,1747121446641,-151.0,0.00019178,2]
[360892724,1747121446650,-151.0,0.00019178,2]
[360892725,1747121446660,-152.142468,0.00019178,2]
[360892726,1747121446669,-919.23,0.00019178,2]
[360892727,1747121446678,-151.0,0.00019178,2]
[360892728,1747121446688,-151.0,0.00019178,2]
[360892729,1747121446698,-400.0,0.00019178,2]
[360892730,1747121446707,-784.35,0.00019178,2]
[360892731,1747121446716,-400.0,0.00019178,2]
[360892732,1747121446725,-400.07679537,0.00019178,2]
[360892733,1747121446735,-313.93562518,0.00019178,2]
[360892734,1747121446744,-151.0,0.00019178,2]
[360892735,1747121446754,-151.780174,0.00019178,2]
[360892736,1747121446763,-400.0,0.00019178,2]
[360892737,1747121446772,-400.0,0.00019178,2]
[360892738,1747121446782,-400.0,0.00019178,2]
[360892739,1747121446791,-400.0,0.00019178,2]
[360892740,1747121446800,-496.43,0.00019178,2]
[360892741,1747121446810,-400.0,0.00019178,2]
[360892742,1747121446820,-400.0,0.00019178,2]
[360892743,1747121446829,-400.0,0.00019178,2]
[360892744,1747121446842,-400.0,0.00019178,2]
[360892745,1747121446851,-400.0,0.00019178,2]
[360892746,1747121446860,-400.0,0.00019178,2]
[360892747,1747121446869,-400.0,0.00019178,2]
[360892748,1747121446879,-400.0,0.00019178,2]
[360892749,1747121446888,-548.44,0.00019178,2]
[360892750,1747121446898,-400.0,0.00019178,2]
[360892751,1747121446907,-402.31232761,0.00019178,2]
[360892752,1747121446916,-400.0,0.00019178,2]
[360892753,1747121446925,-400.0,0.00019178,2]
[360892754,1747121446935,-418.10619697,0.00019178,2]
[360892755,1747121446944,-400.0,0.00019178,2]
[360892756,1747121446954,-400.0,0.00019178,2]
[360892757,1747121446963,-400.0,0.00019178,2]
[360892758,1747121446972,-400.0,0.00019178,2]
[360892759,1747121446981,-735.36,0.00019178,2]
[360892760,1747121446991,-400.0,0.00019178,2]
[360892761,1747121447000,-400.0,0.00019178,2]
[360892762,1747121447009,-671.36,0.00019178,2]
[360892763,1747121447018,-536.89,0.00019178,2]
[360892764,1747121447027,-987.12,0.00019178,2]
[360892765,1747121447037,-400.0,0.00019178,2]
[360892766,1747121447046,-400.0,0.00019178,2]
[360892767,1747121447055,-400.0,0.00019178,2]
[360892768,1747121447064,-400.0,0.00019178,2]
[360892769,1747121447073,-400.0,0.00019178,2]
[360892770,1747121447082,-400.0,0.00019178,2]
[360892771,1747121447092,-400.0,0.00019178,2]
[360892772,1747121447101,-400.0,0.00019178,2]
[360892773,1747121447110,-400.0,0.00019178,2]
[360892774,1747121447119,-722.88,0.00019178,2]
[360892775,1747121447128,-266.38857307,0.00019178,2]
[360892776,1747121447137,-400.0,0.00019178,2]
[360892777,1747121447146,-237.7959567,0.00019178,2]
[360892790,1747122436098,-187.13860785,0.00015386,2]
[360892791,1747122437099,-4812.86139215,0.00015386,2]
[360892792,1747122437121,-500.0,0.00015698,2]
[360892793,1747122437142,-236.8,0.000165,2]
[360892794,1747122437163,-215.772639,0.00016852,2]
[360892795,1747122437185,-1073.47978916,0.000169,2]
[360892796,1747122437206,-500.0,0.00017068,2]
[360892797,1747122437228,-947.4610112,0.00017175,2]
[360892798,1747122449096,-252.5389888,0.00017175,2]
[360892799,1747122449119,-1073.47978905,0.00017176,2]
[360892800,1747122449140,-300.0,0.00017353,2]
[360892801,1747122449160,-404.0,0.00017354,2]
[360892802,1747122449182,-19.94676445,0.00017452,2]
[360892803,1747122452124,-1053.5330246,0.00017452,2]
[360892804,1747122452145,-300.0,0.00017726,2]
[360892805,1747122452166,-500.0,0.00017727,2]
[360892806,1747122452191,-500.0,0.00017727,2]
[360892807,1747122452213,-500.0,0.00017727,2]
[360892808,1747122452236,-480.86042472,0.00017727,2]
[360892809,1747122452259,-1073.47978905,0.00017728,2]
[360892810,1747122452281,-541.33411879,0.00017796,2]
[360892811,1747122452302,-500.0,0.00017796,2]
[360892812,1747122452323,-500.0,0.00017796,2]
[360892813,1747122452344,-500.0,0.00017796,2]
[360892814,1747122452366,-500.0,0.00017796,2]
[360892815,1747122452388,-500.0,0.00017796,2]
[360892816,1747122452409,-450.0,0.00017796,2]
[360892817,1747122452431,-362.22137903,0.00017796,2]
[360892855,1747122632595,-346.606497,0.00013699,2]
[360892857,1747122632605,-500.0,0.00015698,2]
[360892859,1747122632615,-213.12,0.000166,2]
[360892861,1747122632625,-500.0,0.00017068,2]
[360892863,1747122632634,-5000.0,0.00017277,2]
[360892864,1747122632644,-172.5388165,0.00017697,2]
[360892865,1747122632653,-300.0,0.00017796,2]
[360892866,1747122632663,-300.0,0.00017796,2]
[360892867,1747122632671,-5000.0,0.00017797,2]
[360892868,1747122632680,-5000.0,0.00017797,2]
[360892869,1747122632690,-5000.0,0.00017797,2]
[360892870,1747122632699,-2827.75033419,0.00017797,2]
[360892881,1747122638401,-500.0,0.00017797,2]
[360892882,1747122638413,-474.31105081,0.00017797,2]
[360892885,1747122640764,-5000.0,0.00017619,2]
[360892886,1747122640774,-1197.938615,0.00017797,2]
[360892887,1747122640784,-5000.0,0.00017797,2]
[360892888,1747122640793,-1127.06138503,0.00017797,2]
[360892906,1747123573585,-288.16200006,0.00013699,2]
[360892909,1747123579165,-58.45632794,0.00013699,2]
[360892918,1747123635138,-645.10957921,0.0001584,2]
[360892920,1747123647079,-402.43021619,0.0001584,2]
[360892921,1747123650087,-3952.4602046,0.0001584,2]
[360892922,1747123650110,-300.0,0.00015999,2]
[360892923,1747123650131,-1403.65607332,0.00016,2]
[360892924,1747123651197,-3676.81958771,0.00016,2]
[360892991,1747123832782,-5000.0,0.0001584,2]
[360892992,1747123832792,-522.04683188,0.00015899,2]
[360892993,1747123832801,-2244.23929601,0.00016,2]
[360892994,1747123832865,-1808.99840115,0.00016,2]
[360893021,1747123840997,-514.25704144,0.00016,2]
[360893029,1747123841064,-387.56660037,0.00016,2]
[360893031,1747123841074,-500.0,0.0001627,2]
[360893033,1747123841083,-282.77795945,0.0001627,2]
[360893035,1747123841092,-191.81,0.000166,2]
[360893037,1747123841102,-1313.93336014,0.000169,2]
[360893039,1747123841111,-315.12776554,0.00017175,2]
[360893041,1747123841120,-145.6341995,0.00017176,2]
[360893054,1747123844234,-5000.0,0.0001584,2]
[360893055,1747123844244,-1168.29916061,0.00017176,2]
[360893056,1747123844253,-1313.93336011,0.00017452,2]
[360893057,1747123844263,-522.04683188,0.00017489,2]
[360893059,1747123844273,-1313.93336011,0.00017728,2]
[360893060,1747123844282,-834.5,0.00017861,2]
[360893061,1747123844292,-1000.0,0.00018,2]
[360893062,1747123844302,-1313.93336011,0.00018003,2]
[360893063,1747123844311,-378.93388316,0.00018217,2]
[360893064,1747123844321,-500.0,0.00018217,2]
[360893065,1747123844331,-500.0,0.00018217,2]
[360893066,1747123844340,-500.0,0.00018217,2]
[360893067,1747123844350,-500.0,0.00018217,2]
[360893068,1747123844359,-500.0,0.00018217,2]
[360893069,1747123844368,-500.0,0.00018217,2]
[360893070,1747123844378,-500.0,0.00018217,2]
[360893071,1747123844388,-500.0,0.00018217,2]
[360893072,1747123844398,-175.32383931,0.00018217,2]
[360893073,1747123844408,-500.0,0.00018217,2]
[360893074,1747123844418,-500.0,0.00018217,2]
[360893075,1747123844427,-500.0,0.00018217,2]
[360893076,1747123844437,-450.0,0.00018217,2]
[360893077,1747123844447,-5000.0,0.00018218,2]
[360893078,1747123844457,-5000.0,0.00018218,2]
[360893079,1747123844467,-5000.0,0.00018218,2]
[360893080,1747123844476,-5000.0,0.00018218,2]
[360893081,1747123844486,-5000.0,0.00018218,2]
[360893082,1747123844498,-5000.0,0.00018218,2]
[360893083,1747123844508,-268.691,0.0001827,2]
[360893084,1747123844517,-1313.93336011,0.00018279,2]
[360893085,1747123844526,-212.19047112,0.00018315,2]
[360893086,1747123844536,-160.0,0.00018315,2]
[360893087,1747123844545,-997.88380159,0.00018315,2]
[360893088,1747123844555,-422.24190663,0.00018315,2]
[360893089,1747123844565,-12625.42653527,0.00018315,2]
[360893090,1747123844575,-160.0,0.00018315,2]
[360893091,1747123844585,-160.0,0.00018315,2]